fUSD/lending_fUSD_20250422
["ID","MTS","AMOUNT","RATE_DAILY","PERIOD"]
[358616981,1745312107138,-83185.02,0.00059726,120]
[358616982,1745312107178,-663.8,0.00059726,120]
[358616983,1745312107218,-500.0,0.00059767,120]
[358616984,1745312107257,-2105.639,0.0005979,40]
[358616985,1745312107296,-600.0,0.00059823,120]
[358616986,1745312107334,-498.50291036,0.0005985,120]
[358616987,1745312107372,-2501.20096397,0.0005987,120]
[358616988,1745312107413,-2074.51609697,0.00059893,120]
[358616989,1745312107455,-151.0,0.00059893,60]
[358616990,1745312107519,-192.00830252,0.000599,30]
[358616991,1745312107603,-533.43452488,0.000599,33]
[358616992,1745312107669,-151.0,0.000599,120]
[358616993,1745312107748,-151.0,0.000599,120]
[358616994,1745312107832,-1000.0721,0.0005993,40]
[358616995,1745312107883,-3500.0,0.0005995,40]
[358616996,1745312107959,-900.0,0.00059985,120]
[358616997,1745312108030,-500.0,0.00059999,120]
[358616998,1745312108084,-500.0,0.00059999,120]
[358616999,1745312108145,-300.16517452,0.00059999,120]
[358617000,1745312108194,-555.56469575,0.00059999,120]
[358617001,1745312108235,-353.68724183,0.00059999,120]
[358617002,1745312108277,-1000.0,0.00059999,120]
[358617003,1745312108319,-500.0,0.00059999,120]
[358617004,1745312108359,-214.122638,0.00059999,120]
[358617005,1745312108399,-214.122638,0.00059999,120]
[358617006,1745312108440,-151.0,0.00059999,120]
[358617007,1745312108481,-158.533311,0.00059999,120]
[358617008,1745312108520,-158.533311,0.00059999,120]
[358617009,1745312108561,-181.260078,0.00059999,120]
[358617010,1745312108602,-503.12,0.00059999,120]
[358617011,1745312108642,-412.08434578,0.00059999,120]
[358617012,1745312108682,-552.55730221,0.00059999,120]
[358617013,1745312108722,-500.0,0.00059999,120]
[358617014,1745312108763,-500.0,0.00059999,120]
[358617015,1745312108802,-528.49,0.00059999,120]
[358617016,1745312108842,-3562.71,0.00059999,120]
[358617017,1745312108881,-151.0,0.00059999,120]
[358617018,1745312108923,-855.36,0.00059999,120]
[358617019,1745312108965,-988.96,0.00059999,120]
[358617020,1745312109006,-500.0,0.00059999,120]
[358617021,1745312109046,-584.1954,0.00059999,120]
[358617022,1745312109087,-524.35,0.00059999,120]
[358617023,1745312109129,-795.78,0.00059999,120]
[358617024,1745312109175,-500.0,0.00059999,120]
[358617025,1745312109217,-500.0,0.00059999,120]
[358617026,1745312109259,-500.0,0.00059999,120]
[358617027,1745312109302,-1191.65,0.00059999,120]
[358617028,1745312109342,-904.36,0.00059999,120]
[358617029,1745312109384,-605.29,0.00059999,120]
[358617030,1745312109427,-500.0,0.00059999,120]
[358617031,1745312109470,-505.25964306,0.00059999,120]
[358617032,1745312109512,-500.0,0.00059999,120]
[358617033,1745312109553,-523.03,0.00059999,120]
[358617034,1745312109593,-83185.02,0.00059999,120]
[358617035,1745312109635,-663.8,0.00059999,120]
[358617036,1745312109677,-50000.0,0.0006,60]
[358617037,1745312109716,-1000.0,0.0006,30]
[358617038,1745312109891,-10000.0,0.0006,30]
[358617039,1745312109935,-270.85079722,0.0006,120]
[358617040,1745312109977,-2394.51818122,0.0006,120]
[358617041,1745312110020,-500.0,0.0006,120]
[358617042,1745312110059,-2138.0,0.0006,120]
[358617043,1745312110100,-1316.55999769,0.0006,120]
[358617044,1745312110139,-2545.22653039,0.0006,30]
[358617045,1745312110179,-30000.0,0.0006,120]
[358617046,1745312110218,-248.0,0.0006,120]
[358617047,1745312110256,-174.66336366,0.0006,120]
[358617048,1745312110296,-36308.53025493,0.0006,50]
[358617049,1745312110338,-10000.0,0.0006,30]
[358617050,1745312110379,-700.0,0.0006,120]
[358617051,1745312110421,-7109.0,0.0006,120]
[358617052,1745312110464,-387.0,0.0006,60]
[358617053,1745312110505,-30000.0,0.0006,120]
[358617054,1745312110549,-108761.91835679,0.0006,120]
[358617055,1745312113808,-158.77,0.00053,60]
[358617056,1745312113853,-151.0,0.000545,120]
[358617057,1745312113896,-151.0,0.000545,120]
[358617058,1745312113939,-156.557289,0.000545,120]
[358617059,1745312113988,-500.0,0.00054794,120]
[358617060,1745312114032,-500.0,0.00054794,120]
[358617061,1745312114078,-500.0,0.00055068,120]
[358617062,1745312114126,-500.0,0.00055342,120]
[358617063,1745312114171,-158.77,0.000554,60]
[358617064,1745312114218,-500.0,0.00055616,120]
[358617065,1745312114266,-500.0,0.0005589,120]
[358617066,1745312114311,-500.0,0.00056164,120]
[358617067,1745312114356,-500.0,0.00056438,120]
[358617068,1745312114402,-534.88133913,0.00056712,120]
[358617069,1745312114447,-158.77,0.000575,60]
[358617070,1745312114497,-1000000.0,0.00058,120]
[358617071,1745312114543,-1000000.0,0.00058,120]
[358617072,1745312114590,-158.77,0.00059,60]
[358617073,1745312114638,-891238.08164321,0.0006,120]
[358617074,1745312114685,-1000000.0,0.0006,120]
[358617075,1745312114732,-1000000.0,0.0006,120]
[358617076,1745312114779,-103133.39972866,0.0006,120]
[358617077,1745312117627,-500.0,0.00054794,120]
[358617078,1745312117675,-500.0,0.00055068,120]
[358617079,1745312117721,-500.0,0.00055068,120]
[358617080,1745312117767,-500.0,0.00055342,120]
[358617081,1745312117810,-500.0,0.00055342,120]
[358617082,1745312117854,-597.44936777,0.00055616,120]
[358617083,1745312117896,-500.0,0.00055616,120]
[358617084,1745312117946,-151.0,0.00058904,120]
[358617085,1745312117993,-896866.60027134,0.0006,120]
[358617086,1745312118042,-1000000.0,0.0006,120]
[358617087,1745312118091,-1000000.0,0.0006,120]
[358617088,1745312118134,-151.0,0.0006,120]
[358617089,1745312118182,-151.0,0.0006,120]
[358617090,1745312118227,-151.0,0.0006,120]
[358617091,1745312118270,-151.0,0.0006,120]
[358617092,1745312118312,-176.417755,0.0006,120]
[358617093,1745312118355,-151.0,0.0006,120]
[358617094,1745312118399,-151.0,0.0006,120]
[358617095,1745312118444,-151.0,0.0006,120]
[358617096,1745312118485,-30383.71386623,0.0006,30]
[358617097,1745312118526,-151.0,0.0006,60]
[358617098,1745312118566,-151.0,0.0006,60]
[358617099,1745312118606,-151.0,0.0006,60]
[358617100,1745312118645,-177.434233,0.0006,120]
[358617101,1745312118697,-170.83562107,0.0006,120]
[358617102,1745312118738,-72641.0,0.0006,120]
[358617103,1745312118776,-200.0,0.0006,30]
[358617104,1745312118814,-500.0,0.00060041,120]
[358617105,1745312118858,-900.0,0.00060063,120]
[358617106,1745312118901,-900.0,0.00060115,120]
[358617107,1745312118947,-511.06355607,0.00060152,120]
[358617108,1745312118990,-600.0,0.00060158,120]
[358617109,1745312119033,-600.0,0.00060217,120]
[358617110,1745312119075,-503.12,0.00060273,120]
[358617111,1745312119118,-500.0,0.00060273,120]
[358617112,1745312119161,-500.0,0.00060273,120]
[358617113,1745312119205,-528.49,0.00060273,120]
[358617114,1745312119485,-3562.71,0.00060273,120]
[358617115,1745312119529,-855.36,0.00060273,120]
[358617116,1745312119572,-988.96,0.00060273,120]
[358617117,1745312119614,-500.0,0.00060273,120]
[358617118,1745312119657,-500.0,0.00060273,120]
[358617119,1745312119701,-500.0,0.00060273,120]
[358617120,1745312119747,-1191.65,0.00060273,120]
[358617121,1745312119794,-904.36,0.00060273,120]
[358617122,1745312119839,-605.29,0.00060273,120]
[358617123,1745312119882,-628.65635075,0.00060273,120]
[358617124,1745312119926,-500.0,0.00060273,120]
[358617125,1745312119970,-523.03,0.00060273,120]
[358617126,1745312120013,-83185.02,0.00060273,120]
[358617127,1745312120057,-663.8,0.00060273,120]
[358617128,1745312120099,-387.73027184,0.00060274,120]
[358617129,1745312120140,-1071.0,0.00060274,120]
[358617130,1745312120183,-500.0,0.00060315,120]
[358617131,1745312120222,-2100.0,0.00060319,120]
[358617132,1745312120261,-600.0,0.00060395,120]
[358617133,1745312120301,-4280.41991633,0.000604,30]
[358617134,1745312120341,-600.0,0.00060421,120]
[358617135,1745312120385,-3500.0,0.0006044,40]
[358617136,1745312120424,-988.96616283,0.00060537,120]
[358617137,1745312120465,-503.12,0.00060547,120]
[358617138,1745312120511,-500.0,0.00060547,120]
[358617139,1745312120553,-500.0,0.00060547,120]
[358617140,1745312120594,-528.49,0.00060547,120]
[358617141,1745312120635,-3562.71,0.00060547,120]
[358617142,1745312120677,-855.36,0.00060547,120]
[358617143,1745312120717,-988.96,0.00060547,120]
[358617144,1745312120758,-500.0,0.00060547,120]
[358617145,1745312120801,-500.0,0.00060547,120]
[358617146,1745312120845,-500.0,0.00060547,120]
[358617147,1745312120890,-1191.65,0.00060547,120]
[358617148,1745312120934,-904.36,0.00060547,120]
[358617149,1745312120976,-605.29,0.00060547,120]
[358617150,1745312121019,-350.74708174,0.00060547,120]
[358617151,1745312121072,-523.03,0.00060547,120]
[358617152,1745312121116,-2367.21,0.00060547,120]
[358617153,1745312121160,-83185.02,0.00060547,120]
[358617154,1745312121206,-663.8,0.00060547,120]
[358617155,1745312121252,-600.0,0.00060577,120]
[358617156,1745312121296,-500.0,0.00060589,120]
[358617157,1745312121341,-158.77,0.000606,60]
[358617158,1745312121385,-900.0,0.00060644,120]
[358617159,1745312121429,-150.0,0.00060662,120]
[358617160,1745312121474,-600.0,0.00060718,120]
[358617161,1745312121519,-500.0,0.00060802,120]
[358617162,1745312121563,-500.0,0.00060821,120]
[358617163,1745312121608,-151.0,0.00060821,120]
[358617164,1745312121651,-158.533311,0.00060821,120]
[358617165,1745312121694,-158.533311,0.00060821,120]
[358617166,1745312121738,-503.12,0.00060821,120]
[358617167,1745312121781,-500.0,0.00060821,120]
[358617168,1745312121825,-317.86458538,0.00060821,120]
[358617169,1745312121884,-528.49,0.00060821,120]
[358617170,1745312121935,-3562.71,0.00060821,120]
[358617171,1745312121980,-855.36,0.00060821,120]
[358617172,1745312122026,-988.96,0.00060821,120]
[358617173,1745312122072,-500.0,0.00060821,120]
[358617174,1745312122118,-635.15875077,0.00060821,120]
[358617175,1745312122164,-566.4388719,0.00060821,120]
[358617176,1745312122210,-1191.65,0.00060821,120]
[358617177,1745312122256,-904.36,0.00060821,120]
[358617178,1745312122300,-605.29,0.00060821,120]
[358617179,1745312122348,-523.03,0.00060821,120]
[358617180,1745312122395,-83185.02,0.00060821,120]
[358617181,1745312122444,-663.8,0.00060821,120]
[358617182,1745312122487,-214.122638,0.00060836,120]
[358617183,1745312122532,-500.0,0.00060863,120]
[358617184,1745312122579,-150.0,0.00060941,120]
[358617185,1745312122623,-182.44979357,0.00060999,30]
[358617186,1745312122668,-50000.0,0.00061,61]
[358617187,1745312122710,-20000.0,0.00061,120]
[358617188,1745312122758,-2000.0,0.00061,120]
[358617189,1745312122801,-2000.0,0.00061,120]
[358617190,1745312122846,-2000.0,0.00061,120]
[358617191,1745312122889,-2000.0,0.00061,120]
[358617192,1745312122936,-2000.0,0.00061,120]
[358617193,1745312122981,-200.0,0.00061,99]
[358617194,1745312123029,-1000000.0,0.00061,120]
[358617195,1745312123077,-598561.51428441,0.00061,120]
[358617196,1745312130518,-151.0,0.000545,120]
[358617197,1745312130562,-500.0,0.00054794,120]
[358617198,1745312130794,-404.59525517,0.00055068,120]
[358617199,1745312130843,-500.0,0.0005589,120]
[358617200,1745312130889,-500.0,0.00056164,120]
[358617201,1745312130935,-183.19022117,0.00056438,120]
[358617202,1745312130985,-151.0,0.00058904,120]
[358617203,1745312131030,-50000.0,0.0006,120]
[358617204,1745312131074,-151.0,0.0006,120]
[358617205,1745312131119,-151.0,0.0006,120]
[358617206,1745312131163,-151.0,0.00060273,120]
[358617207,1745312131216,-401438.48571559,0.00061,120]
[358617208,1745312131258,-1000000.0,0.00061,120]
[358617209,1745312131301,-1000000.0,0.00061,120]
[358617210,1745312131345,-1000000.0,0.00061,120]
[358617211,1745312131385,-2019.82224175,0.00061,120]
[358617212,1745312131430,-1000000.0,0.00061,120]
[358617213,1745312131477,-543698.90656632,0.00061,120]
[358617214,1745312134500,-500.0,0.00054794,120]
[358617215,1745312134546,-500.0,0.00055068,120]
[358617216,1745312134590,-191.79248179,0.00055342,120]
[358617217,1745312134652,-456301.09343368,0.00061,120]
[358617218,1745312134696,-2000.0,0.00061,120]
[358617219,1745312134740,-616.893,0.00061,120]
[358617220,1745312134783,-151.0,0.00061,120]
[358617221,1745312134826,-151.0,0.00061,120]
[358617222,1745312134874,-278.244326,0.00061,120]
[358617223,1745312134920,-158.533311,0.00061,120]
[358617224,1745312134967,-158.533311,0.00061,120]
[358617225,1745312135012,-158.533311,0.00061,120]
[358617226,1745312135056,-158.533311,0.00061,120]
[358617227,1745312135099,-158.533311,0.00061,120]
[358617228,1745312135141,-158.533311,0.00061,120]
[358617229,1745312135185,-158.533311,0.00061,120]
[358617230,1745312135226,-158.533307,0.00061,120]
[358617231,1745312135267,-170.83562107,0.00061,120]
[358617232,1745312135306,-151.0,0.00061,120]
[358617233,1745312135345,-151.0,0.00061,120]
[358617234,1745312135387,-151.0,0.00061,120]
[358617235,1745312135431,-503.34847153,0.00061095,120]
[358617236,1745312135474,-295.26363387,0.00061095,120]
[358617237,1745312135513,-528.6269148,0.00061095,120]
[358617238,1745312135555,-3562.74786913,0.00061095,120]
[358617239,1745312135599,-855.55834092,0.00061095,120]
[358617240,1745312135642,-989.18437378,0.00061095,120]
[358617241,1745312135687,-316.04253031,0.00061095,120]
[358617242,1745312135726,-605.31120241,0.00061095,120]
[358617243,1745312135766,-523.06244154,0.00061095,120]
[358617244,1745312135806,-83185.24754612,0.00061095,120]
[358617245,1745312135847,-663.93924958,0.00061095,120]
[358617246,1745312135890,-500.0,0.00061137,120]
[358617247,1745312135932,-600.0,0.00061168,120]
[358617248,1745312135977,-3000.0,0.000612,120]
[358617249,1745312136021,-900.0,0.00061268,120]
[358617250,1745312136063,-895.52658688,0.000613,120]
[358617251,1745312136105,-2100.0,0.00061332,120]
[358617252,1745312136148,-2367.21,0.00061369,120]
[358617253,1745312136189,-200.0,0.0006137,30]
[358617254,1745312136225,-500.0,0.00061411,120]
[358617255,1745312136265,-150.0,0.00061484,120]
[358617256,1745312136308,-1000000.0,0.000615,120]
[358617257,1745312136351,-1000000.0,0.000615,120]
[358617258,1745312136396,-1000000.0,0.000615,120]
[358617259,1745312136440,-151.0,0.000615,120]
[358617260,1745312136488,-900.0,0.00061532,120]
[358617261,1745312136530,-500.0,0.00061581,120]
[358617262,1745312136572,-500.0,0.00061643,120]
[358617263,1745312136613,-500.0,0.00061685,120]
[358617264,1745312136653,-600.0,0.00061715,120]
[358617265,1745312136693,-2100.0,0.00061716,120]
[358617266,1745312136734,-486.70852557,0.00061736,120]
[358617267,1745312136776,-205.0,0.000618,120]
[358617268,1745312136820,-907.08,0.00061959,120]
[358617269,1745312136868,-900.0,0.00061989,120]
[358617270,1745312136914,-1000.0,0.00061999,120]
[358617271,1745312136962,-50000.0,0.00062,62]
[358617272,1745312137003,-50000.0,0.00062,120]
[358617273,1745312137049,-1000000.0,0.00062,120]
[358617274,1745312137091,-9999.999999,0.00062,120]
[358617275,1745312137133,-25347.22569689,0.00062,30]
[358617276,1745312137174,-1955.33,0.00062,120]
[358617277,1745312137220,-300.0,0.00062,120]
[358617278,1745312137263,-400.0,0.00062,120]
[358617279,1745312137306,-7109.0,0.00062,120]
[358617280,1745312137349,-170.83562107,0.00062,120]
[358617281,1745312137393,-500.0,0.00062041,120]
[358617282,1745312137439,-2367.21,0.00062191,120]
[358617283,1745312137483,-600.0,0.00062206,120]
[358617284,1745312137524,-500.0,0.00062272,120]
[358617285,1745312137564,-2100.0,0.00062285,120]
[358617286,1745312137747,-2100.0,0.00062313,120]
[358617287,1745312137791,-2000.0,0.00062345,60]
[358617288,1745312137836,-600.0,0.00062445,120]
[358617289,1745312137883,-500.0,0.00062465,120]
[358617290,1745312137932,-268877.41565006,0.000625,120]
[358617291,1745312141970,-731122.58434994,0.000625,120]
[358617292,1745312142016,-1000000.0,0.000625,120]
[358617293,1745312142058,-290.858469,0.000625,120]
[358617294,1745312142096,-600.0,0.00062501,120]
[358617295,1745312142135,-2100.0,0.00062508,120]
[358617296,1745312142175,-900.0,0.00062598,120]
[358617297,1745312142214,-900.0,0.00062642,120]
[358617298,1745312142252,-200.0,0.000627,120]
[358617299,1745312142292,-200.0,0.0006274,30]
[358617300,1745312142331,-600.0,0.0006277,120]
[358617301,1745312142369,-500.0,0.000628,120]
[358617302,1745312142411,-2100.0,0.00062824,120]
[358617303,1745312142453,-151.0,0.00062849,120]
[358617304,1745312142498,-2100.0,0.00062948,120]
[358617305,1745312142540,-50000.0,0.00063,63]
[358617306,1745312142579,-500.0,0.00063,120]
[358617307,1745312142620,-170.0,0.00063,120]
[358617308,1745312142660,-500.0,0.00063,120]
[358617309,1745312142705,-1000000.0,0.00063,120]
[358617310,1745312142748,-10000.0,0.00063,30]
[358617311,1745312142789,-199999.999999,0.00063,120]
[358617312,1745312142831,-30383.71386623,0.00063,30]
[358617313,1745312142875,-170.83562107,0.00063,120]
[358617314,1745312142917,-150.0,0.00063013,120]
[358617315,1745312142958,-150.0,0.00063013,120]
[358617316,1745312143002,-223.48006014,0.00063013,120]
[358617317,1745312143044,-2367.21,0.00063013,120]
[358617318,1745312143095,-1311.32662048,0.00063014,120]
[358617319,1745312143139,-1311.32662048,0.00063014,120]
[358617320,1745312143182,-1311.32662048,0.00063014,120]
[358617321,1745312143226,-1311.32662048,0.00063014,120]
[358617322,1745312143269,-1311.32662048,0.00063014,120]
[358617323,1745312143309,-1311.32662048,0.00063014,120]
[358617324,1745312143349,-1311.32662048,0.00063014,120]
[358617325,1745312143390,-1311.32662048,0.00063014,120]
[358617326,1745312143435,-1311.32662048,0.00063014,120]
[358617327,1745312143478,-1311.32662048,0.00063014,120]
[358617328,1745312143520,-1311.32662048,0.00063014,120]
[358617329,1745312143561,-1311.32662048,0.00063014,120]
[358617330,1745312143602,-1311.32662048,0.00063014,120]
[358617331,1745312143647,-1311.32662048,0.00063014,120]
[358617332,1745312143691,-1311.32662048,0.00063014,120]
[358617333,1745312143735,-1311.32662048,0.00063014,120]
[358617334,1745312143778,-1311.32662048,0.00063014,120]
[358617335,1745312143824,-1311.32662048,0.00063014,120]
[358617336,1745312143868,-1311.32662048,0.00063014,120]
[358617337,1745312143911,-1311.32662048,0.00063014,120]
[358617338,1745312143954,-1311.32662048,0.00063014,120]
[358617339,1745312143996,-1311.32662048,0.00063014,120]
[358617340,1745312144038,-1311.32662048,0.00063014,120]
[358617341,1745312144080,-1311.32662048,0.00063014,120]
[358617342,1745312144120,-1311.32662048,0.00063014,120]
[358617343,1745312144161,-1311.32662048,0.00063014,120]
[358617344,1745312144203,-1311.32662048,0.00063014,120]
[358617345,1745312144246,-1311.32662048,0.00063014,120]
[358617346,1745312144291,-1311.32662048,0.00063014,120]
[358617347,1745312144335,-1311.32662048,0.00063014,120]
[358617348,1745312144384,-1311.32662048,0.00063014,120]
[358617349,1745312144429,-1311.32662048,0.00063014,120]
[358617350,1745312144472,-1311.32662048,0.00063014,120]
[358617351,1745312144517,-1311.32662048,0.00063014,120]
[358617352,1745312144560,-1311.32662048,0.00063014,120]
[358617353,1745312144603,-1311.32662048,0.00063014,120]
[358617354,1745312144644,-1311.32662048,0.00063014,120]
[358617355,1745312144686,-1311.32662048,0.00063014,120]
[358617356,1745312144729,-1311.32662048,0.00063014,120]
[358617357,1745312144773,-1311.32662048,0.00063014,120]
[358617358,1745312144815,-1311.32662048,0.00063014,120]
[358617359,1745312144858,-1311.32662048,0.00063014,120]
[358617360,1745312144898,-1311.32662048,0.00063014,120]
[358617361,1745312144941,-1311.32662048,0.00063014,120]
[358617362,1745312144987,-1311.32662048,0.00063014,120]
[358617363,1745312145032,-1311.32662048,0.00063014,120]
[358617364,1745312145078,-1311.32662048,0.00063014,120]
[358617365,1745312145121,-1311.32662048,0.00063014,120]
[358617366,1745312145160,-1311.32662048,0.00063014,120]
[358617367,1745312145204,-1311.32662048,0.00063014,120]
[358617368,1745312145245,-1311.32662048,0.00063014,120]
[358617369,1745312145285,-1311.32662048,0.00063014,120]
[358617370,1745312145324,-1311.32662048,0.00063014,120]
[358617371,1745312145365,-1311.32662048,0.00063014,120]
[358617372,1745312145404,-1311.32662048,0.00063014,120]
[358617373,1745312145447,-1311.32662048,0.00063014,120]
[358617374,1745312145493,-1311.32662048,0.00063014,120]
[358617375,1745312145541,-1311.32662048,0.00063014,120]
[358617376,1745312145591,-1311.32662048,0.00063014,120]
[358617377,1745312145637,-1311.32662048,0.00063014,120]
[358617378,1745312145682,-1311.32662048,0.00063014,120]
[358617379,1745312145726,-1311.32662048,0.00063014,120]
[358617380,1745312145917,-1311.32662048,0.00063014,120]
[358617381,1745312145962,-1311.32662048,0.00063014,120]
[358617382,1745312146005,-1311.32662048,0.00063014,120]
[358617383,1745312146048,-1311.32662048,0.00063014,120]
[358617384,1745312146091,-1311.32662048,0.00063014,120]
[358617385,1745312146133,-1311.32662048,0.00063014,120]
[358617386,1745312146179,-1311.32662048,0.00063014,120]
[358617387,1745312146223,-1311.32662048,0.00063014,120]
[358617388,1745312146265,-1311.32662048,0.00063014,120]
[358617389,1745312146306,-1311.32662048,0.00063014,120]
[358617390,1745312146345,-1311.32662048,0.00063014,120]
[358617391,1745312146388,-1311.32662048,0.00063014,120]
[358617392,1745312146430,-1311.32662048,0.00063014,120]
[358617393,1745312146472,-1311.32662048,0.00063014,120]
[358617394,1745312146513,-1311.32662048,0.00063014,120]
[358617395,1745312146553,-1311.32662048,0.00063014,120]
[358617396,1745312146595,-1311.32662048,0.00063014,120]
[358617397,1745312146644,-1311.32662048,0.00063014,120]
[358617398,1745312146686,-1311.32662048,0.00063014,120]
[358617399,1745312146746,-1311.32662048,0.00063014,120]
[358617400,1745312146791,-1311.32662048,0.00063014,120]
[358617401,1745312146835,-1311.32662048,0.00063014,120]
[358617402,1745312146887,-1311.32662048,0.00063014,120]
[358617403,1745312146934,-1311.32662048,0.00063014,120]
[358617404,1745312146985,-1311.32662048,0.00063014,120]
[358617405,1745312147032,-1311.32662048,0.00063014,120]
[358617406,1745312147078,-1311.32662048,0.00063014,120]
[358617407,1745312147125,-1311.32662048,0.00063014,120]
[358617408,1745312147171,-1311.32662048,0.00063014,120]
[358617409,1745312147216,-1311.32662048,0.00063014,120]
[358617410,1745312147264,-1311.32662048,0.00063014,120]
[358617411,1745312147306,-1311.32662048,0.00063014,120]
[358617412,1745312147348,-1311.32662048,0.00063014,120]
[358617413,1745312147390,-1311.32662048,0.00063014,120]
[358617414,1745312147434,-1311.32662048,0.00063014,120]
[358617415,1745312147477,-1311.32662048,0.00063014,120]
[358617416,1745312147524,-1311.32662048,0.00063014,120]
[358617417,1745312147570,-1311.32662048,0.00063014,120]
[358617418,1745312147610,-500.0,0.00063041,120]
[358617419,1745312147650,-2100.0,0.00063125,120]
[358617420,1745312147690,-900.0,0.00063167,120]
[358617421,1745312147732,-41856.76,0.000632,120]
[358617422,1745312147773,-150.0,0.00063285,120]
[358617423,1745312147820,-600.0,0.00063285,120]
[358617424,1745312147860,-631.01059565,0.00063287,120]
[358617425,1745312147899,-1071.0,0.00063288,120]
[358617426,1745312147938,-5091.90183848,0.000635,120]
[358617427,1745312147978,-15886.7512071,0.000635,120]
[358617428,1745312148018,-2100.0,0.00063631,120]
[358617429,1745312148067,-152.49,0.000637,66]
[358617430,1745312148116,-152.49,0.000637,66]
[358617431,1745312148166,-152.49,0.000637,66]
[358617432,1745312148213,-152.49,0.000637,66]
[358617433,1745312148261,-152.49,0.000637,66]
[358617434,1745312148308,-152.49,0.000637,66]
[358617435,1745312148357,-152.49,0.000637,66]
[358617436,1745312148405,-152.49,0.000637,66]
[358617437,1745312148450,-900.0,0.0006372,120]
[358617438,1745312148494,-500.0,0.0006379,120]
[358617439,1745312148536,-171.21,0.000638,120]
[358617440,1745312148576,-800.0,0.000638,120]
[358617441,1745312148619,-2367.21,0.00063835,120]
[358617442,1745312148658,-2100.0,0.00063964,120]
[358617443,1745312148702,-50000.0,0.00064,64]
[358617444,1745312148742,-327.92629218,0.00064,120]
[358617445,1745312148782,-500.0,0.00064,120]
[358617446,1745312148824,-1000000.0,0.00064,120]
[358617447,1745312148868,-300.0,0.00064,120]
[358617448,1745312148909,-25000.0,0.00064,120]
[358617449,1745312148952,-1509.1464773,0.00064,65]
[358617450,1745312148993,-7109.0,0.00064,120]
[358617451,1745312149032,-170.83562107,0.00064,120]
[358617452,1745312149072,-200.0,0.0006411,30]
[358617453,1745312149115,-150.0,0.0006422,120]
[358617454,1745312149159,-1484.0,0.00064343,60]
[358617455,1745312149199,-2100.0,0.00064365,120]
[358617456,1745312149239,-3000.0,0.0006444,45]
[358617457,1745312149281,-661690.98355484,0.000645,120]
[358617458,1745312158673,-2471666.12644516,0.000645,120]
[358617459,1745312158716,-1500.0,0.000645,120]
[358617460,1745312158755,-600.0,0.00064601,120]
[358617461,1745312158800,-2367.21,0.00064657,120]
[358617462,1745312158837,-793.09158539,0.00064785,120]
[358617463,1745312158879,-536.89146621,0.00064793,120]
[358617464,1745312158918,-12199.50012903,0.000648,120]
[358617465,1745312158956,-691.66556828,0.000648,120]
[358617466,1745312158996,-1500.0,0.0006489,40]
[358617467,1745312159035,-268.64904516,0.0006489,120]
[358617468,1745312159078,-150.0,0.00064966,120]
[358617469,1745312159119,-2100.0,0.00064969,120]
[358617470,1745312159161,-900.0,0.00064981,120]
[358617471,1745312159200,-230.7764467,0.00064987,120]
[358617472,1745312159242,-2100.0,0.00064998,120]
[358617473,1745312159280,-1000.0,0.00064999,120]
[358617474,1745312159320,-50000.0,0.00065,65]
[358617475,1745312159357,-500.0,0.00065,120]
[358617476,1745312159395,-500.0,0.00065,120]
[358617477,1745312159433,-53727.63429519,0.00065,60]
[358617478,1745312159471,-25000.0,0.00065,120]
[358617479,1745312159513,-1069.00917062,0.00065,120]
[358617480,1745312159553,-7368.0,0.00065,120]